[Event "Late Titled Tuesday Blitz February 8 2022"]
[White "Osiecki, Stanislaw"]
[Black "Kostiukov, Alexandr"]
[WhiteFideId "1102990"]
[BlackFideId "14108100"]
[WhiteElo "2127"]
[BlackElo "2202"]
[Result "0-1"]
[Round "07"]
[TimeControl "180+1"]
[Date "2022.02.09"]
[WhiteClock "0:00:26"]
[BlackClock "0:00:12"]

1. e4 {[%clk 0:02:58]}  c5 {[%clk 0:02:59]} 2. c3 {[%clk 0:02:57]}  g6 {[%clk 0:03:00]} 3. d4 {[%clk 0:02:57]}  cxd4 {[%clk 0:03:01]} 4. cxd4 {[%clk 0:02:57]}  d5 {[%clk 0:03:01]} 5. e5 {[%clk 0:02:57]}  Bg7 {[%clk 0:03:00]} 6. h3 {[%clk 0:02:55]}  Nc6 {[%clk 0:03:01]} 7. Nf3 {[%clk 0:02:54]}  f6 {[%clk 0:03:01]} 8. exf6 {[%clk 0:02:52]}  Nxf6 {[%clk 0:03:02]} 9. Bd3 {[%clk 0:02:51]}  O-O {[%clk 0:03:02]} 10. O-O {[%clk 0:02:50]}  Ne4 {[%clk 0:03:02]} 11. Nc3 {[%clk 0:02:47]}  Bf5 {[%clk 0:02:39]} 12. Qe2 {[%clk 0:02:38]}  Nxd4 {[%clk 0:02:17]} 13. Nxd4 {[%clk 0:02:35]}  Bxd4 {[%clk 0:02:18]} 14. Nxd5 {[%clk 0:02:23]}  Nxf2 {[%clk 0:02:02]} 15. Nxe7+ {[%clk 0:02:13]}  Qxe7 {[%clk 0:01:39]} 16. Qxe7 {[%clk 0:02:11]}  Bxd3 {[%clk 0:01:36]} 17. Bh6 {[%clk 0:01:30]}  Ng4+ {[%clk 0:01:34]} 18. Kh1 {[%clk 0:01:24]}  Nxh6 {[%clk 0:01:32]} 19. Rxf8+ {[%clk 0:01:10]}  Rxf8 {[%clk 0:01:29]} 20. Qxb7 {[%clk 0:01:07]}  Nf5 {[%clk 0:00:41]} 21. Qb3+ {[%clk 0:01:02]}  Kg7 {[%clk 0:00:35]} 22. Qxd3 {[%clk 0:00:54]}  h5 {[%clk 0:00:35]} 23. Rc1 {[%clk 0:00:42]}  h4 {[%clk 0:00:33]} 24. Rc7+ {[%clk 0:00:40]}  Kf6 {[%clk 0:00:28]} 25. Qa6+ {[%clk 0:00:37]}  Kg5 {[%clk 0:00:27]} 26. g4 {[%clk 0:00:32]}  Ng3+ {[%clk 0:00:24]} 27. Kg2 {[%clk 0:00:27]}  Rf2+ {[%clk 0:00:23]} 28. Kg1 {[%clk 0:00:27]}  Rf7+ {[%clk 0:00:14]} 29. Kg2 {[%clk 0:00:27]}  Rf2+ {[%clk 0:00:13]} 30. Kg1 {[%clk 0:00:26]}  Rxb2# {[%clk 0:00:12]} 0-1


[Site "https://www.chess.com"]

[Event "Late Titled Tuesday Blitz February 8 2022"]
[White "Plotkin, Mark"]
[Black "Yoo, Christopher Woojin"]
[WhiteFideId "2611651"]
[BlackFideId "30909694"]
[WhiteElo "2178"]
[BlackElo "2105"]
[Result "1-0"]
[Round "07"]
[TimeControl "180+1"]
[Date "2022.02.08"]
[WhiteClock "0:00:14"]
[BlackClock "0:00:03"]

1. e4 {[%clk 0:03:00]}  e5 {[%clk 0:02:58]} 2. Nf3 {[%clk 0:02:57]}  Nc6 {[%clk 0:02:58]} 3. c3 {[%clk 0:02:55]}  d5 {[%clk 0:02:48]} 4. exd5 {[%clk 0:02:56]}  Qxd5 {[%clk 0:02:47]} 5. d4 {[%clk 0:02:56]}  Nf6 {[%clk 0:02:31]} 6. Be3 {[%clk 0:02:51]}  Ng4 {[%clk 0:02:06]} 7. Nbd2 {[%clk 0:02:48]}  exd4 {[%clk 0:02:01]} 8. Bc4 {[%clk 0:02:37]}  Nxe3 {[%clk 0:01:57]} 9. fxe3 {[%clk 0:02:36]}  Qd6 {[%clk 0:01:45]} 10. exd4 {[%clk 0:02:21]}  Be7 {[%clk 0:01:44]} 11. O-O {[%clk 0:02:16]}  O-O {[%clk 0:01:44]} 12. Ne4 {[%clk 0:02:16]}  Qg6 {[%clk 0:01:44]} 13. Qe2 {[%clk 0:02:09]}  Bf5 {[%clk 0:01:38]} 14. Rae1 {[%clk 0:02:08]}  Rae8 {[%clk 0:01:31]} 15. Ng3 {[%clk 0:02:06]}  Bd7 {[%clk 0:01:30]} 16. Qf2 {[%clk 0:01:53]}  Bf6 {[%clk 0:01:03]} 17. Bb3 {[%clk 0:01:49]}  Na5 {[%clk 0:00:55]} 18. Bc2 {[%clk 0:01:48]}  Qh6 {[%clk 0:00:56]} 19. b3 {[%clk 0:01:41]}  b5 {[%clk 0:00:50]} 20. Bf5 {[%clk 0:01:26]}  Bxf5 {[%clk 0:00:46]} 21. Nxf5 {[%clk 0:01:27]}  Qg6 {[%clk 0:00:46]} 22. Ne5 {[%clk 0:01:22]}  Bxe5 {[%clk 0:00:45]} 23. dxe5 {[%clk 0:01:19]}  Nc6 {[%clk 0:00:46]} 24. Qc5 {[%clk 0:01:16]}  Re6 {[%clk 0:00:37]} 25. Re3 {[%clk 0:01:05]}  Qh5 {[%clk 0:00:14]} 26. Rg3 {[%clk 0:01:05]}  g6 {[%clk 0:00:13]} 27. Nd4 {[%clk 0:00:58]}  Nxd4 {[%clk 0:00:09]} 28. cxd4 {[%clk 0:00:59]}  c6 {[%clk 0:00:09]} 29. Rgf3 {[%clk 0:00:56]}  Qg5 {[%clk 0:00:07]} 30. Qxa7 {[%clk 0:00:53]}  Qe7 {[%clk 0:00:05]} 31. Qb6 {[%clk 0:00:42]}  h5 {[%clk 0:00:03]} 32. a4 {[%clk 0:00:40]}  bxa4 {[%clk 0:00:02]} 33. bxa4 {[%clk 0:00:41]}  c5 {[%clk 0:00:02]} 34. Qxc5 {[%clk 0:00:39]}  Qxc5 {[%clk 0:00:01]} 35. dxc5 {[%clk 0:00:40]}  Rxe5 {[%clk 0:00:02]} 36. Rc3 {[%clk 0:00:40]}  Rc8 {[%clk 0:00:02]} 37. c6 {[%clk 0:00:40]}  Ra5 {[%clk 0:00:03]} 38. Rc4 {[%clk 0:00:40]}  Kf8 {[%clk 0:00:03]} 39. Re1 {[%clk 0:00:39]}  Ra6 {[%clk 0:00:03]} 40. c7 {[%clk 0:00:38]}  Ra7 {[%clk 0:00:03]} 41. Rec1 {[%clk 0:00:38]}  Ke7 {[%clk 0:00:04]} 42. Kf2 {[%clk 0:00:37]}  Kd6 {[%clk 0:00:04]} 43. Kf3 {[%clk 0:00:35]}  g5 {[%clk 0:00:03]} 44. Ke4 {[%clk 0:00:34]}  Ra5 {[%clk 0:00:04]} 45. Rd4+ {[%clk 0:00:33]}  Ke7 {[%clk 0:00:03]} 46. Rdc4 {[%clk 0:00:32]}  f5+ {[%clk 0:00:03]} 47. Kd4 {[%clk 0:00:31]}  g4 {[%clk 0:00:03]} 48. Ke3 {[%clk 0:00:25]}  h4 {[%clk 0:00:03]} 49. Kf4 {[%clk 0:00:25]}  Kd7 {[%clk 0:00:02]} 50. Kg5 {[%clk 0:00:20]}  h3 {[%clk 0:00:02]} 51. g3 {[%clk 0:00:20]}  Rd5 {[%clk 0:00:01]} 52. Kf4 {[%clk 0:00:19]}  Rd2 {[%clk 0:00:01]} 53. R1c2 {[%clk 0:00:16]}  Rd5 {[%clk 0:00:02]} 54. Rc5 {[%clk 0:00:15]}  Rd4+ {[%clk 0:00:02]} 55. Kxf5 {[%clk 0:00:15]}  Rxa4 {[%clk 0:00:03]} 56. Rd2+ {[%clk 0:00:15]}  Ke7 {[%clk 0:00:04]} 57. Re5+ {[%clk 0:00:14]}  Kf7 {[%clk 0:00:03]} 58. Rd7+ {[%clk 0:00:14]} 1-0


[Site "https://www.chess.com"]

[Event "Late Titled Tuesday Blitz February 8 2022"]
[White "Prohorov, Olexandr"]
[Black "Degardin, Sylvain"]
[WhiteFideId "14105578"]
[BlackFideId "20623070"]
[WhiteElo "1993"]
[BlackElo "2156"]
[Result "1-0"]
[Round "07"]
[TimeControl "180+1"]
[Date "2022.02.09"]
[WhiteClock "0:01:23"]
[BlackClock "0:00:37"]

1. e4 {[%clk 0:03:00]}  e6 {[%clk 0:02:59]} 2. Qe2 {[%clk 0:03:00]}  Be7 {[%clk 0:02:57]} 3. g3 {[%clk 0:02:59]}  d5 {[%clk 0:02:57]} 4. Bg2 {[%clk 0:02:59]}  Nf6 {[%clk 0:02:54]} 5. e5 {[%clk 0:02:59]}  Nfd7 {[%clk 0:02:54]} 6. f4 {[%clk 0:03:00]}  c5 {[%clk 0:02:51]} 7. Nf3 {[%clk 0:03:00]}  Nc6 {[%clk 0:02:51]} 8. O-O {[%clk 0:03:01]}  b6 {[%clk 0:02:49]} 9. c3 {[%clk 0:03:01]}  a5 {[%clk 0:02:48]} 10. d3 {[%clk 0:02:54]}  Ba6 {[%clk 0:02:47]} 11. a4 {[%clk 0:02:55]}  h6 {[%clk 0:02:37]} 12. Na3 {[%clk 0:02:54]}  Qb8 {[%clk 0:02:31]} 13. Nb5 {[%clk 0:02:51]}  Na7 {[%clk 0:02:31]} 14. c4 {[%clk 0:02:50]}  Nxb5 {[%clk 0:02:28]} 15. axb5 {[%clk 0:02:50]}  Bb7 {[%clk 0:02:28]} 16. Nd2 {[%clk 0:02:47]}  dxc4 {[%clk 0:02:16]} 17. dxc4 {[%clk 0:02:43]}  Bxg2 {[%clk 0:02:12]} 18. Qxg2 {[%clk 0:02:43]}  O-O {[%clk 0:02:12]} 19. Ne4 {[%clk 0:02:44]}  f5 {[%clk 0:02:08]} 20. exf6 {[%clk 0:02:39]}  Nxf6 {[%clk 0:02:08]} 21. Bd2 {[%clk 0:02:38]}  Rd8 {[%clk 0:02:06]} 22. Bc3 {[%clk 0:02:37]}  Qc7 {[%clk 0:01:48]} 23. Rfe1 {[%clk 0:02:34]}  Ng4 {[%clk 0:01:32]} 24. h3 {[%clk 0:02:30]}  Nf6 {[%clk 0:01:27]} 25. Be5 {[%clk 0:02:30]}  Qd7 {[%clk 0:01:23]} 26. Re2 {[%clk 0:02:17]}  Qd3 {[%clk 0:01:18]} 27. Nxf6+ {[%clk 0:01:57]}  gxf6 {[%clk 0:01:16]} 28. Bc7 {[%clk 0:01:55]}  Rd7 {[%clk 0:01:07]} 29. Rxe6 {[%clk 0:01:55]}  Rf8 {[%clk 0:00:47]} 30. Bxb6 {[%clk 0:01:47]}  Qxc4 {[%clk 0:00:47]} 31. Rae1 {[%clk 0:01:46]}  Qxb5 {[%clk 0:00:38]} 32. Rxe7 {[%clk 0:01:38]}  Rxe7 {[%clk 0:00:38]} 33. Rxe7 {[%clk 0:01:38]}  Qxb6 {[%clk 0:00:39]} 34. Qd5+ {[%clk 0:01:39]}  Kh8 {[%clk 0:00:39]} 35. Qd7 {[%clk 0:01:23]}  c4+ {[%clk 0:00:37]} 36. Kf1 {[%clk 0:01:23]} 1-0


[Site "https://www.chess.com"]

[Event "Late Titled Tuesday Blitz February 8 2022"]
[White "Przybylski, Wojciech"]
[Black "Gurevich, Dmitry"]
[WhiteFideId "1117599"]
[BlackFideId "2000407"]
[WhiteElo "2133"]
[BlackElo "2506"]
[Result "0-1"]
[Round "07"]
[TimeControl "180+1"]
[Date "2022.02.09"]
[WhiteClock "0:00:02"]
[BlackClock "0:00:01"]

1. e4 {[%clk 0:03:00]}  c5 {[%clk 0:02:58]} 2. Nf3 {[%clk 0:03:00]}  d6 {[%clk 0:02:59]} 3. Bb5+ {[%clk 0:02:58]}  Bd7 {[%clk 0:02:58]} 4. c4 {[%clk 0:02:53]}  Nc6 {[%clk 0:02:57]} 5. O-O {[%clk 0:02:53]}  Nf6 {[%clk 0:02:57]} 6. Nc3 {[%clk 0:02:52]}  g6 {[%clk 0:02:58]} 7. h3 {[%clk 0:02:50]}  Bg7 {[%clk 0:02:57]} 8. d3 {[%clk 0:02:50]}  O-O {[%clk 0:02:57]} 9. Be3 {[%clk 0:02:48]}  a6 {[%clk 0:02:53]} 10. Ba4 {[%clk 0:02:48]}  Rb8 {[%clk 0:02:48]} 11. a3 {[%clk 0:02:43]}  Ne8 {[%clk 0:02:42]} 12. d4 {[%clk 0:02:41]}  cxd4 {[%clk 0:02:39]} 13. Nxd4 {[%clk 0:02:41]}  b5 {[%clk 0:02:24]} 14. cxb5 {[%clk 0:02:38]}  Nxd4 {[%clk 0:02:23]} 15. Bxd4 {[%clk 0:02:37]}  axb5 {[%clk 0:02:21]} 16. Bb3 {[%clk 0:02:26]}  b4 {[%clk 0:02:20]} 17. Bxg7 {[%clk 0:02:14]}  Nxg7 {[%clk 0:02:18]} 18. Nd5 {[%clk 0:01:36]}  bxa3 {[%clk 0:02:17]} 19. bxa3 {[%clk 0:01:32]}  Ne6 {[%clk 0:02:16]} 20. f4 {[%clk 0:01:25]}  Nc5 {[%clk 0:02:06]} 21. Bc2 {[%clk 0:01:25]}  e6 {[%clk 0:02:02]} 22. Ne3 {[%clk 0:01:21]}  Bc6 {[%clk 0:01:57]} 23. e5 {[%clk 0:01:13]}  dxe5 {[%clk 0:01:53]} 24. fxe5 {[%clk 0:01:09]}  Qg5 {[%clk 0:01:37]} 25. Ng4 {[%clk 0:01:01]}  h5 {[%clk 0:01:35]} 26. Nf6+ {[%clk 0:00:58]}  Kg7 {[%clk 0:01:34]} 27. Qe2 {[%clk 0:00:45]}  Rb2 {[%clk 0:01:12]} 28. Rfb1 {[%clk 0:00:32]}  Rxb1+ {[%clk 0:01:00]} 29. Rxb1 {[%clk 0:00:31]}  Rd8 {[%clk 0:00:59]} 30. Rd1 {[%clk 0:00:19]}  Rxd1+ {[%clk 0:00:58]} 31. Bxd1 {[%clk 0:00:18]}  h4 {[%clk 0:00:54]} 32. Ng4 {[%clk 0:00:15]}  Qf4 {[%clk 0:00:47]} 33. Qf2 {[%clk 0:00:08]}  Qxf2+ {[%clk 0:00:42]} 34. Kxf2 {[%clk 0:00:07]}  Be4 {[%clk 0:00:40]} 35. Bf3 {[%clk 0:00:06]}  Bf5 {[%clk 0:00:34]} 36. Ke3 {[%clk 0:00:06]}  Kf8 {[%clk 0:00:28]} 37. Kd4 {[%clk 0:00:06]}  Na4 {[%clk 0:00:22]} 38. Bd1 {[%clk 0:00:06]}  Nb6 {[%clk 0:00:20]} 39. Ne3 {[%clk 0:00:05]}  Ke7 {[%clk 0:00:15]} 40. a4 {[%clk 0:00:05]}  Kd7 {[%clk 0:00:12]} 41. a5 {[%clk 0:00:06]}  Nc8 {[%clk 0:00:11]} 42. Bf3 {[%clk 0:00:05]}  Kc7 {[%clk 0:00:10]} 43. Kc5 {[%clk 0:00:05]}  Bd3 {[%clk 0:00:08]} 44. Nd1 {[%clk 0:00:04]}  Ba6 {[%clk 0:00:06]} 45. Nc3 {[%clk 0:00:03]}  Na7 {[%clk 0:00:05]} 46. Ne4 {[%clk 0:00:02]}  Nc6 {[%clk 0:00:01]} 0-1


[Site "https://www.chess.com"]

[Event "Late Titled Tuesday Blitz February 8 2022"]
[White "Pulvett Marin, Daniel Eduardo"]
[Black "Timofeev, Artyom"]
[WhiteFideId "3900410"]
[BlackFideId "4140419"]
[WhiteElo "2413"]
[BlackElo "2583"]
[Result "0-1"]
[Round "07"]
[TimeControl "180+1"]
[Date "2022.02.08"]
[WhiteClock "0:00:10"]
[BlackClock "0:00:21"]

1. d4 {[%clk 0:03:00]}  d5 {[%clk 0:02:59]} 2. c4 {[%clk 0:02:59]}  e6 {[%clk 0:02:59]} 3. Nc3 {[%clk 0:02:59]}  c6 {[%clk 0:02:59]} 4. e4 {[%clk 0:02:58]}  dxe4 {[%clk 0:02:58]} 5. Nxe4 {[%clk 0:02:59]}  Bb4+ {[%clk 0:02:57]} 6. Bd2 {[%clk 0:03:00]}  Qxd4 {[%clk 0:02:56]} 7. Bxb4 {[%clk 0:03:00]}  Qxe4+ {[%clk 0:02:56]} 8. Ne2 {[%clk 0:03:00]}  Na6 {[%clk 0:02:53]} 9. Bf8 {[%clk 0:03:00]}  Ne7 {[%clk 0:02:49]} 10. Bxg7 {[%clk 0:03:00]}  Rg8 {[%clk 0:02:50]} 11. Bf6 {[%clk 0:03:00]}  Qf5 {[%clk 0:02:28]} 12. Bc3 {[%clk 0:02:47]}  Qe4 {[%clk 0:02:10]} 13. Bf6 {[%clk 0:02:43]}  Rg6 {[%clk 0:02:05]} 14. Bxe7 {[%clk 0:02:10]}  Kxe7 {[%clk 0:02:05]} 15. Qd4 {[%clk 0:02:07]}  Qxd4 {[%clk 0:02:01]} 16. Nxd4 {[%clk 0:02:08]}  e5 {[%clk 0:02:01]} 17. Nc2 {[%clk 0:02:01]}  Nc5 {[%clk 0:01:58]} 18. O-O-O {[%clk 0:01:57]}  Be6 {[%clk 0:01:57]} 19. Ne3 {[%clk 0:01:55]}  a5 {[%clk 0:01:56]} 20. Bd3 {[%clk 0:01:45]}  Rf6 {[%clk 0:01:45]} 21. f3 {[%clk 0:01:42]}  h5 {[%clk 0:01:44]} 22. h4 {[%clk 0:01:36]}  Rg8 {[%clk 0:01:41]} 23. Bc2 {[%clk 0:01:35]}  Rf4 {[%clk 0:01:40]} 24. b3 {[%clk 0:01:27]}  Rd4 {[%clk 0:01:33]} 25. Rde1 {[%clk 0:01:24]}  Kf6 {[%clk 0:01:32]} 26. Reg1 {[%clk 0:01:06]}  e4 {[%clk 0:01:18]} 27. fxe4 {[%clk 0:01:00]}  Nxe4 {[%clk 0:01:06]} 28. Rd1 {[%clk 0:00:54]}  Rxd1+ {[%clk 0:00:56]} 29. Rxd1 {[%clk 0:00:54]}  Nc3 {[%clk 0:00:55]} 30. Rf1+ {[%clk 0:00:52]}  Ke5 {[%clk 0:00:55]} 31. Kd2 {[%clk 0:00:50]}  Ne4+ {[%clk 0:00:51]} 32. Kc1 {[%clk 0:00:41]}  Rg3 {[%clk 0:00:46]} 33. Re1 {[%clk 0:00:39]}  f5 {[%clk 0:00:46]} 34. a3 {[%clk 0:00:33]}  Kf4 {[%clk 0:00:37]} 35. Bxe4 {[%clk 0:00:19]}  Rxe3 {[%clk 0:00:35]} 36. Rxe3 {[%clk 0:00:17]}  Kxe3 {[%clk 0:00:35]} 37. Bf3 {[%clk 0:00:18]}  Bf7 {[%clk 0:00:36]} 38. Kb2 {[%clk 0:00:16]}  Kf2 {[%clk 0:00:33]} 39. Kc3 {[%clk 0:00:15]}  Kg3 {[%clk 0:00:33]} 40. b4 {[%clk 0:00:15]}  axb4+ {[%clk 0:00:31]} 41. axb4 {[%clk 0:00:16]}  Kxh4 {[%clk 0:00:31]} 42. c5 {[%clk 0:00:14]}  Kg3 {[%clk 0:00:27]} 43. b5 {[%clk 0:00:15]}  Be8 {[%clk 0:00:26]} 44. b6 {[%clk 0:00:14]}  h4 {[%clk 0:00:26]} 45. Be2 {[%clk 0:00:09]}  Bd7 {[%clk 0:00:21]} 46. Ba6 {[%clk 0:00:10]}  Bc8 {[%clk 0:00:21]} 0-1


[Site "https://www.chess.com"]

[Event "Late Titled Tuesday Blitz February 8 2022"]
[White "Punin, Andrii"]
[Black "Martirosyan, Haik M."]
[WhiteFideId "14112639"]
[BlackFideId "13306553"]
[WhiteElo "2357"]
[BlackElo "2735"]
[Result "0-1"]
[Round "07"]
[TimeControl "180+1"]
[Date "2022.02.08"]
[WhiteClock "0:00:11"]
[BlackClock "0:00:13"]

1. e4 {[%clk 0:03:00]}  e5 {[%clk 0:02:59]} 2. Nf3 {[%clk 0:03:00]}  Nc6 {[%clk 0:02:59]} 3. Bc4 {[%clk 0:02:57]}  Bc5 {[%clk 0:02:59]} 4. c3 {[%clk 0:02:57]}  Nf6 {[%clk 0:02:59]} 5. d4 {[%clk 0:02:57]}  exd4 {[%clk 0:02:58]} 6. cxd4 {[%clk 0:02:57]}  Bb4+ {[%clk 0:02:58]} 7. Bd2 {[%clk 0:02:51]}  Bxd2+ {[%clk 0:02:58]} 8. Nbxd2 {[%clk 0:02:50]}  d5 {[%clk 0:02:58]} 9. exd5 {[%clk 0:02:51]}  Nxd5 {[%clk 0:02:59]} 10. Qb3 {[%clk 0:02:50]}  Na5 {[%clk 0:02:57]} 11. Qa4+ {[%clk 0:02:50]}  Nc6 {[%clk 0:02:57]} 12. Qb3 {[%clk 0:02:50]}  Nce7 {[%clk 0:02:57]} 13. O-O {[%clk 0:02:50]}  O-O {[%clk 0:02:57]} 14. Rfe1 {[%clk 0:02:49]}  c6 {[%clk 0:02:56]} 15. Ne4 {[%clk 0:02:45]}  a5 {[%clk 0:02:54]} 16. h3 {[%clk 0:02:33]}  a4 {[%clk 0:02:41]} 17. Qa3 {[%clk 0:02:26]}  Ng6 {[%clk 0:02:02]} 18. Bxd5 {[%clk 0:02:18]}  Qxd5 {[%clk 0:01:58]} 19. Nc3 {[%clk 0:02:09]}  Qh5 {[%clk 0:01:55]} 20. Ne5 {[%clk 0:02:05]}  Nf4 {[%clk 0:01:48]} 21. Ne4 {[%clk 0:01:53]}  f6 {[%clk 0:01:39]} 22. Nc4 {[%clk 0:01:43]}  Be6 {[%clk 0:01:25]} 23. Ncd6 {[%clk 0:01:19]}  Bd5 {[%clk 0:01:12]} 24. Qg3 {[%clk 0:00:47]}  Ne2+ {[%clk 0:01:08]} 25. Rxe2 {[%clk 0:00:47]}  Qxe2 {[%clk 0:01:09]} 26. Nf5 {[%clk 0:00:46]}  g6 {[%clk 0:01:09]} 27. Nc3 {[%clk 0:00:32]}  Qe6 {[%clk 0:01:04]} 28. Nh6+ {[%clk 0:00:24]}  Kg7 {[%clk 0:01:03]} 29. Ng4 {[%clk 0:00:23]}  h5 {[%clk 0:00:55]} 30. Ne3 {[%clk 0:00:22]}  Qd7 {[%clk 0:00:49]} 31. a3 {[%clk 0:00:22]}  Be6 {[%clk 0:00:47]} 32. Rd1 {[%clk 0:00:20]}  Ra5 {[%clk 0:00:44]} 33. Rd2 {[%clk 0:00:19]}  Rg5 {[%clk 0:00:44]} 34. Qf4 {[%clk 0:00:18]}  Bxh3 {[%clk 0:00:43]} 35. Ne4 {[%clk 0:00:17]}  Rg4 {[%clk 0:00:14]} 36. Nxg4 {[%clk 0:00:16]}  Bxg4 {[%clk 0:00:15]} 37. Nc5 {[%clk 0:00:15]}  Qf7 {[%clk 0:00:15]} 38. f3 {[%clk 0:00:14]}  Bf5 {[%clk 0:00:15]} 39. Re2 {[%clk 0:00:14]}  Rd8 {[%clk 0:00:12]} 40. Kh1 {[%clk 0:00:13]}  b6 {[%clk 0:00:10]} 41. Ne4 {[%clk 0:00:09]}  Rxd4 {[%clk 0:00:06]} 42. Qe3 {[%clk 0:00:09]}  c5 {[%clk 0:00:06]} 43. Ng3 {[%clk 0:00:08]}  Bd3 {[%clk 0:00:06]} 44. Re1 {[%clk 0:00:08]}  Qd7 {[%clk 0:00:05]} 45. Qf2 {[%clk 0:00:04]}  h4 {[%clk 0:00:04]} 46. Nf1 {[%clk 0:00:03]}  Bxf1 {[%clk 0:00:04]} 47. Qxf1 {[%clk 0:00:04]}  Rd2 {[%clk 0:00:03]} 48. Re2 {[%clk 0:00:03]}  Rd1 {[%clk 0:00:03]} 49. Re1 {[%clk 0:00:03]}  Rd2 {[%clk 0:00:02]} 50. Re2 {[%clk 0:00:03]}  Qd3 {[%clk 0:00:03]} 51. Re7+ {[%clk 0:00:03]}  Kf8 {[%clk 0:00:03]} 52. Qxd3 {[%clk 0:00:03]}  Rxd3 {[%clk 0:00:04]} 53. Re2 {[%clk 0:00:03]}  b5 {[%clk 0:00:03]} 54. Kh2 {[%clk 0:00:03]}  g5 {[%clk 0:00:03]} 55. Kh3 {[%clk 0:00:04]}  Kf7 {[%clk 0:00:03]} 56. Rc2 {[%clk 0:00:03]}  c4 {[%clk 0:00:03]} 57. Re2 {[%clk 0:00:04]}  Rd5 {[%clk 0:00:03]} 58. Kh2 {[%clk 0:00:04]}  Re5 {[%clk 0:00:03]} 59. Rd2 {[%clk 0:00:04]}  Ke6 {[%clk 0:00:04]} 60. Kg1 {[%clk 0:00:03]}  Rd5 {[%clk 0:00:05]} 61. Re2+ {[%clk 0:00:04]}  Re5 {[%clk 0:00:05]} 62. Rd2 {[%clk 0:00:04]}  Rd5 {[%clk 0:00:05]} 63. Re2+ {[%clk 0:00:04]}  Kd6 {[%clk 0:00:06]} 64. Kf2 {[%clk 0:00:05]}  Rd3 {[%clk 0:00:06]} 65. Ke1 {[%clk 0:00:05]}  Kd5 {[%clk 0:00:06]} 66. Rc2 {[%clk 0:00:04]}  Rb3 {[%clk 0:00:06]} 67. Kd1 {[%clk 0:00:03]}  Ke5 {[%clk 0:00:07]} 68. Kc1 {[%clk 0:00:04]}  Kf5 {[%clk 0:00:08]} 69. Re2 {[%clk 0:00:03]}  c3 {[%clk 0:00:08]} 70. bxc3 {[%clk 0:00:03]}  Rxc3+ {[%clk 0:00:09]} 71. Kb2 {[%clk 0:00:03]}  Rb3+ {[%clk 0:00:10]} 72. Ka2 {[%clk 0:00:04]}  Kf4 {[%clk 0:00:09]} 73. Re6 {[%clk 0:00:04]}  f5 {[%clk 0:00:10]} 74. Rf6 {[%clk 0:00:04]}  Re3 {[%clk 0:00:08]} 75. Rb6 {[%clk 0:00:03]}  Re2+ {[%clk 0:00:08]} 76. Kb1 {[%clk 0:00:03]}  Rxg2 {[%clk 0:00:08]} 77. Rxb5 {[%clk 0:00:04]}  h3 {[%clk 0:00:09]} 78. Rb4+ {[%clk 0:00:04]}  Kxf3 {[%clk 0:00:08]} 79. Rxa4 {[%clk 0:00:04]}  h2 {[%clk 0:00:08]} 80. Rc4 {[%clk 0:00:05]}  h1=Q+ {[%clk 0:00:07]} 81. Rc1 {[%clk 0:00:06]}  Qg1 {[%clk 0:00:07]} 82. Rxg1 {[%clk 0:00:05]}  Rxg1+ {[%clk 0:00:07]} 83. Kb2 {[%clk 0:00:06]}  Rh1 {[%clk 0:00:08]} 84. a4 {[%clk 0:00:06]}  Rh8 {[%clk 0:00:08]} 85. Kc3 {[%clk 0:00:06]}  Ra8 {[%clk 0:00:09]} 86. Kb4 {[%clk 0:00:06]}  g4 {[%clk 0:00:10]} 87. Kb5 {[%clk 0:00:06]}  g3 {[%clk 0:00:10]} 88. a5 {[%clk 0:00:06]}  g2 {[%clk 0:00:11]} 89. a6 {[%clk 0:00:07]}  g1=Q {[%clk 0:00:12]} 90. a7 {[%clk 0:00:07]}  Qxa7 {[%clk 0:00:12]} 91. Kc6 {[%clk 0:00:08]}  Rb8 {[%clk 0:00:11]} 92. Kd6 {[%clk 0:00:08]}  Qb7 {[%clk 0:00:11]} 93. Ke6 {[%clk 0:00:08]}  Rc8 {[%clk 0:00:12]} 94. Kf6 {[%clk 0:00:09]}  Qc7 {[%clk 0:00:12]} 95. Kg5 {[%clk 0:00:09]}  Rd8 {[%clk 0:00:13]} 96. Kh5 {[%clk 0:00:09]}  Qd7 {[%clk 0:00:12]} 97. Kh6 {[%clk 0:00:10]}  Re8 {[%clk 0:00:12]} 98. Kg6 {[%clk 0:00:09]}  Qe7 {[%clk 0:00:12]} 99. Kh6 {[%clk 0:00:09]}  Rg8 {[%clk 0:00:12]} 100. Kh5 {[%clk 0:00:09]}  Qg7 {[%clk 0:00:12]} 101. Kh4 {[%clk 0:00:09]}  Ke4 {[%clk 0:00:12]} 102. Kh3 {[%clk 0:00:09]}  f4 {[%clk 0:00:13]} 103. Kh2 {[%clk 0:00:09]}  f3 {[%clk 0:00:14]} 104. Kh3 {[%clk 0:00:10]}  f2 {[%clk 0:00:15]} 105. Kh4 {[%clk 0:00:10]}  Qg6 {[%clk 0:00:14]} 106. Kh3 {[%clk 0:00:11]}  f1=Q+ {[%clk 0:00:14]} 107. Kh4 {[%clk 0:00:11]}  Qh6# {[%clk 0:00:13]} 0-1


[Site "https://www.chess.com"]